Cogmind - Beta 15 @@@ ROGUE MODE // 2025.05.17 @ 16:33:12 // Winter2022/Polymind Player: Minty Result: Destroyed by G-34 Mercenary with Small Laser Performance ------------- Evolutions (0) 0 Regions Visited (3) 600 Robots Destroyed (9) 45 Value Destroyed (275) 275 Prototype IDs (3) 60 Alien Tech Used (0) 0 Bonus (1320) 1320 TOTAL SCORE: 2170 Bonus ------- Polymind Skill 1320 Cogmind --------- Core Integrity 0/250 Matter 100/100 Energy 150/150 System Corruption 0% Temperature Cool (48) Movement Rolling (110) Location -10/Subcaves Parts ------- > --- POWER (1) -------- Subdweller Power Source > --- PROPULSION (1) --- Subdweller Monowheel > --- UTILITY (4) ------ Disposable Heat Sink > --- WEAPON (1) ------- Subdweller Laser > --- INVENTORY (2) ---- (None) Peak State ------------ > --- POWER ------------ Subdweller Power Source > --- PROPULSION ------- Subdweller Monowheel > --- UTILITY ---------- Disposable Heat Sink Scrap Shield > --- WEAPON ----------- Subdweller Laser > --- INVENTORY -------- (None) [Rating: 12] Favorites ----------- Power Light Nuclear Core Engine Subdweller Power Source Power Core Light Nuclear Core Propulsion Aluminum Leg Leg Aluminum Leg Wheel Subdweller Monowheel Utility Improved Heat Sink Device Improved Heat Sink Protection Scrap Shield Weapon Particle Gun Energy Gun Particle Gun Build | -11 -10 -10 -10 ------- Run | Yrd Mat Min Sub Slots Evolved . | . . . . Power . | . . . . Propulsion . | . . . . Utility . | . . . . Weapon . | . . . . Parts Attached . | . . . . Power . | . . . . Engine . | . . . . Core . | . . . . Reactor . | . . . . Propulsion . | . . . . Treads . | . . . . Leg . | . . . . Wheel . | . . . . Hover . | . . . . Flight . | . . . . Utility . | . . . . Device . | . . . . Storage . | . . . . Processor . | . . . . Hackware . | . . . . Protection . | . . . . Artifact . | . . . . Weapon . | . . . . Energy Gun . | . . . . Energy Cannon . | . . . . Ballistic Gun . | . . . . Ballistic Cannon . | . . . . Launcher . | . . . . Special Weapon . | . . . . Impact Weapon . | . . . . Slashing Weapon . | . . . . Piercing Weapon . | . . . . Special Melee Weapon . | . . . . Unidentified Prototypes . | . . . . Parts Lost 2 | . . . 2 Power . | . . . . Propulsion . | . . . . Utility 1 | . . . 1 Weapon 1 | . . . 1 Highest Loss Streak 1 | . . . 1 To Critical Strikes . | . . . . Average Backups . | . . . . Power . | . . . . Propulsion . | . . . . Utility . | . . . . Weapon . | . . . . Tool/Special . | . . . . Unused Backups . | . . . . Power . | . . . . Propulsion . | . . . . Utility . | . . . . Weapon . | . . . . Tool/Special . | . . . . Average Slot Usage (%) 89 | . 80 100 70 Engine 3 | . . . 12 Core 14 | . 16 20 2 Leg 28 | . 32 40 4 Wheel 3 | . . . 12 Device 17 | . 16 20 14 Protection 2 | . . . 9 Energy Gun 17 | . 16 20 13 Peak Build Rating 12 | . 10 10 12 Average Rating 10 | . 8 10 10 On Entrance 5 | . . 10 10 Naked Turns 14 | . 13 . 1 Heaviest Build 28 | . 9 9 28 Greatest Support 20 | 3 20 20 20 Greatest Overweight (x) 1 | . . . 1 Average Overweight (x) . | . . . . Largest Inventory Capacity 2 | . 1 1 2 Average Capacity 1 | . . 1 1 Most Carried 1 | . . 1 1 Average Carried . | . . . . Final Capacity 2 | . 1 1 2 Final Carried 1 | . . 1 . Class Distribution -------------------- 71% | Grunt 26% | Subdweller Dominant Class ---------------- Grunt | -10/Materials Grunt | -10/Mines Subdweller | -10/Subcaves Resources | -11 -10 -10 -10 ----------- Run | Yrd Mat Min Sub Matter Collected . | . . . . Remotely . | . . . . Salvage Created 219 | . 125 19 75 Parts 18 | . 4 3 11 Haulers Intercepted . | . . . . Recyclers Shooed 1 | . . 1 . Parts Field Recycled . | . . . . Retrieved Matter . | . . . . Parts Self-Destructed 4 | . . . 4 Prevented . | . . . . Kills | -11 -10 -10 -10 ------- Run | Yrd Mat Min Sub Combat Hostiles Destroyed 9 | . 3 3 3 Guns 9 | . 3 3 3 Classes Destroyed 3 | . 1 1 1 Swarmer 3 | . . 3 . Grunt 3 | . 3 . . Subdweller 3 | . . . 3 Best Kill Streak 3 | . 2 3 2 Combat Bots Only 3 | . 2 3 2 Max Kills in Single Turn 1 | . 1 1 1 Gunslinging . | . . . . Exploded . | . . . . Melee . | . . . . Uniques/NPCs Destroyed . | . . . . Combat | -11 -10 -10 -10 -------- Run | Yrd Mat Min Sub Hostile Shots Fired 76 | . 17 35 24 Missed 24 | . 6 11 7 Hits 52 | . 11 24 17 Projectile 52 | . 11 24 17 Damage Taken 698 | . 128 187 383 Core 256 | . 35 60 161 Absorbed by Shields . | . . . . Core Remaining (%) 100 | 100 . . . Volleys Fired 57 | . 17 19 21 Largest 1 | . 1 1 1 Hottest 65 | . 65 65 65 Shots Fired 57 | . 17 19 21 Gun 57 | . 17 19 21 Cannon . | . . . . Launcher . | . . . . Special . | . . . . Kinetic . | . . . . Thermal 57 | . 17 19 21 Explosive . | . . . . Electromagnetic . | . . . . Robot Hit Streak 5 | . 5 3 4 Robot Miss Streak 3 | . 3 3 2 Penetration Max . | . . . . Secondary Targets . | . . . . Shots Hit Robots 33 | . 10 9 14 Core Hits 16 | . 6 4 6 Critical Kills . | . . . . Critical Parts Destroyed . | . . . . Critical Strikes 1 | . 1 . . Burn 1 | . 1 . . Melee Attacks . | . . . . Impact . | . . . . Slashing . | . . . . Piercing . | . . . . Sneak Attacks . | . . . . Combat Hostiles . | . . . . Follow-up Attacks . | . . . . Damage Inflicted 596 | . 150 152 294 Guns 595 | . 150 151 294 Cannons . | . . . . Explosions . | . . . . Melee . | . . . . Ramming 1 | . . 1 . Kinetic . | . . . . Thermal 595 | . 150 151 294 Explosive . | . . . . Electromagnetic . | . . . . Impact . | . . . . Slashing . | . . . . Piercing . | . . . . Highest Corruption . | . . . . Average Corruption . | . . . . Corruption Purged . | . . . . Corruption Blocked . | . . . . Overload Shots . | . . . . Overflow Damage . | . . . . Projectiles . | . . . . Explosions . | . . . . Melee . | . . . . Knockbacks . | . . . . Impact . | . . . . Kinetic . | . . . . Secondary . | . . . . Self-Inflicted Damage . | . . . . Shots . | . . . . Rammed . | . . . . Targets Rammed 2 | . . 2 . Kicked 2 | . . 2 . Crushed . | . . . . Highest Temperature 70 | . 34 . 70 Average Temperature 29 | . 19 . 34 Received Heat Transfer 126 | . 69 . 57 Siege Activations . | . . . . Martial Activations . | . . . . Shielding Activations . | . . . . Robots Disrupted . | . . . . Combat Hostiles . | . . . . Robots Corrupted . | . . . . Combat Hostiles . | . . . . Parts Fried . | . . . . Impact Corruptions . | . . . . Robots Melted . | . . . . Combat Hostiles . | . . . . Parts Melted 5 | . 4 1 . Heat Transferred 1176 | . 444 370 362 Parts Sabotaged . | . . . . Parts Stolen . | . . . . Parts Stripped . | . . . . Power Chain Reactions . | . . . . Alert | -11 -10 -10 -10 ------- Run | Yrd Mat Min Sub Maximum Alert Level . | . . . . Low Security (%) 100 | . 100 100 . Level 1 . | . . . . Level 2 . | . . . . Level 3 . | . . . . Level 4 . | . . . . Level 5 . | . . . . High Security . | . . . . Max Security . | . . . . Peak Influence 75 | . 64 75 . Initial 21 | . . 21 . Average 17 | . 26 16 . Influence Increases 184 | . 84 85 15 Destroy 0b10 Robot/C 120 | . 60 60 . Destroy Leader 20 | . 10 10 . Successful Hack 14 | . 14 . . Disable Machine 15 | . . 15 . Lose Combat Pursuer 15 | . . . 15 Influence Decreases 184 | . 30 139 15 Entered New Map 33 | . . 33 . Time Decay 151 | . 30 106 15 Squads Dispatched . | . . . . Investigation . | . . . . Extermination . | . . . . Reinforcement . | . . . . Assault . | . . . . Garrison . | . . . . Intercept . | . . . . Searches Triggered . | . . . . Construction Impeded . | . . . . Haulers Reinforced . | . . . . Active Scanning Responses . | . . . . Cargo Convoy Interrupts . | . . . . Stealth | -11 -10 -10 -10 --------- Run | Yrd Mat Min Sub Distress Signals . | . . . . Communications Jammed . | . . . . Distress Signals . | . . . . Times Spotted 15 | . 5 3 7 Peak Tracking Total 3 | . 2 3 2 Tactical Retreats 1 | . . . 1 Traps | -11 -10 -10 -10 ------- Run | Yrd Mat Min Sub Traps Triggered . | . . . . Indirectly . | . . . . Trap Hack Attempts . | . . . . Triggered . | . . . . Disarmed . | . . . . Reprogrammed . | . . . . Reused 1 | . . . 1 Traps Extracted . | . . . . Installed 4 | . . 3 1 Triggered . | . . . . Most Traps Carried 1 | . . 1 1 Machines | -11 -10 -10 -10 ---------- Run | Yrd Mat Min Sub Machines Disabled 1 | . . 1 . Max in Single Turn 1 | . . 1 . Machines Repaired . | . . . . Machines Dismantled . | . . . . Machines Sabotaged . | . . . . Overloaded Fab Kills . | . . . . Hacking | -11 -10 -10 -10 --------- Run | Yrd Mat Min Sub Machines Accessed 1 | . 1 . . Terminals 1 | . 1 . . Fabricators . | . . . . Repair Stations . | . . . . Recycling Units . | . . . . Scanalyzers . | . . . . Garrison Access . | . . . . Total Hacks 4 | . 4 . . Successful 1 | . 1 . . Failed 3 | . 3 . . Catastrophic . | . . . . Database Lockouts . | . . . . Manual 2 | . 2 . . Terminals 4 | . 4 . . Fabricators . | . . . . Repair Stations . | . . . . Recycling Units . | . . . . Scanalyzers . | . . . . Garrison Access . | . . . . Terminal Hacks 1 | . 1 . . Prototype ID Bank 1 | . 1 . . Fabricator Hacks . | . . . . Repair Station Hacks . | . . . . Recycling Unit Hacks . | . . . . Scanalyzer . | . . . . Garrison Access Hacks . | . . . . Unauthorized Hacks . | . . . . Terminals . | . . . . Fabricators . | . . . . Repair Stations . | . . . . Recycling Units . | . . . . Scanalyzers . | . . . . Garrison Access . | . . . . Data Cores Recovered . | . . . . Used . | . . . . Hacking Detections 1 | . 1 . . Full Trace Events 1 | . 1 . . Feedback Events . | . . . . Feedback Blocked . | . . . . Robot Schematics Acquired . | . . . . Robots Built . | . . . . Authchips . | . . . . Time . | . . . . Total Robot Build Rating . | . . . . Part Schematics Acquired . | . . . . Parts Built . | . . . . Authchips . | . . . . Time . | . . . . Total Part Build Rating . | . . . . Parts Repaired . | . . . . Time . | . . . . Parts Recycled . | . . . . Recycled Matter . | . . . . Retrieved Matter . | . . . . Retrieved Components . | . . . . Parts Scanalyzed . | . . . . Part Schematics Acquired . | . . . . Parts Damaged . | . . . . Bothacking | -11 -10 -10 -10 ------------ Run | Yrd Mat Min Sub Used RIF Installer . | . . . . Robots Hacked 1 | . 1 . . Non-combat . | . . . . Combat 1 | . 1 . . Robot Hacks Applied 1 | . 1 . . find_shortcuts 1 | . 1 . . Relay Couplers Released . | . . . . Fabnet Peak Effective % . | . . . . Robots Rewired . | . . . . Allies Hacked . | . . . . Hacks Repelled . | . . . . Allies | -11 -10 -10 -10 -------- Run | Yrd Mat Min Sub Total Allies . | . . . . Largest Group . | . . . . Highest-Rated Group . | . . . . Highest-Rated Ally . | . . . . Total Orders . | . . . . Ally Attacks . | . . . . Total Damage . | . . . . Kills . | . . . . Allies Corrupted . | . . . . Allies Melted . | . . . . Intel | -11 -10 -10 -10 ------- Run | Yrd Mat Min Sub Active Infowar (turns) . | . . . . Robot Analysis Total 2 | . 1 . 1 Derelict Logs Recovered 1 | . . 1 . Drone Launches . | . . . . Drone Recoveries . | . . . . Exploration | -11 -10 -10 -10 ------------- Run | Yrd Mat Min Sub Turns Passed 828 | . 97 483 248 Spaces Moved 608 | 1 68 366 173 Core 28 | 1 25 . 2 Treads . | . . . . Legs 425 | . 43 366 16 Wheels 155 | . . . 155 Hover . | . . . . Flight . | . . . . Fastest Speed 50 | 50 50 120 50 Average Speed 116 | 50 94 120 116 Slowest Speed 120 | 50 120 120 120 Overloaded Moves . | . . . . Propulsion Burnouts . | . . . . Robots Hopped . | . . . . Potential Cave-ins . | . . . . Cave-ins Triggered . | . . . . Exploration Rate (%) 30 | 2 22 84 13 Regions Visited 3 Branch Regions 2 Pre-discovered Areas . | . . . . Known Exits Taken . | . . . . Unknown Exits Taken 3 | 1 1 1 . Scrap Searched 3 | . . 3 . Spaces Dug . | . . . . Terrain Destroyed . | . . . . Melee . | . . . . Projectile . | . . . . AOE . | . . . . Terrain Rammed . | . . . . Walls Destroyed . | . . . . Machines Disabled . | . . . . Actions | -11 -10 -10 -10 --------- Run | Yrd Mat Min Sub Total 672 | . 84 390 198 Wait 2 | . . . 2 Move 605 | . 67 365 173 Hop . | . . . . Pick Up 1 | . . 1 . Fast Attach . | . . . . Attach . | . . . . Detach . | . . . . Swap . | . . . . Drop 1 | . . . 1 Fire 57 | . 17 19 21 Melee . | . . . . Ram . | . . . . Kick 2 | . . 2 . Crush . | . . . . Escape Stasis . | . . . . Rewire . | . . . . Trap 4 | . . 3 1 Miscellaneous . | . . . . Route ------- -11/Scrapyard -10/Materials (discovered 2 exits: [*Min x2]) -10/Mines (discovered 2 exits: [*Mat] / [*Sub]) -10/Subcaves History --------- Turn | Location | Event 1 | -11/Scrapyard | Discovered new exit (range 0) 1 | -11/Scrapyard | Entered Materials 14 | -10/Materials | Discovered new exit (range 5) 80 | -10/Materials | Discovered new exit (range 16) 98 | -10/Materials | Entered Mines 115 | -10/Mines | Discovered new exit (range 5) 325 | -10/Mines | Learned 8 Materials zone layouts 519 | -10/Mines | Found a hidden stash of uninstalled traps 576 | -10/Mines | Discovered new exit (range 4) 581 | -10/Mines | Entered Subcaves 598 | -10/Subcaves | Core integrity fell below 50% 776 | -10/Subcaves | Core integrity fell below 20% 829 | -10/Subcaves | Destroyed by G-34 Mercenary with Small Laser Last Messages --------------- AMBIENT_HEAT=-10 GOAL=ESCAPE 00585_ Dropped Heavy Explosive Trap. 00585_ Installed Heavy Explosive Trap. 00597_ Particle Gun destroyed. 00597_ YC-M35(R) triggered Heavy Explosive Trap. 00597_ An explosion rips through the floor. 00597_ KU-0SH(R) destroyed. 00604_ Subatomizers dissect the Sub. Optics. 00605_ Released control of G-47 Trooper. 00606_ Took control of YC-M35(R). 00606_ Extracted analysis data for YC-M35(R). 00607_ G-47 Trooper reactivates. 00619_ Subatomizers dissect the Sub. Optics. 00712_ I3-SBX(R) destroyed. 00714_ GG-KMB(R) destroyed. 00716_ Acquired 31 Protomatter. 00771_ Scrap Shield destroyed. 00778_ LN-M3D(R) destroyed. 00784_ Acquired 18 Protomatter. Map ----- +----------------------------------------------------+ | ?????????????????????????????????????????????????? | | ?????????????????????????????????????????????????? | | ?????????????????????????????????????????????????? | | ?????????????????????????????????????????????????? | | ?????????????????????????????????????????????????? | | ?????????????????????????????????????????????????? | | ?????????????????????????????????????????????????? | | ?????????????????????????????????????????????????? | | ?#####???????????????????????????????????????????? | | ## ##??????????????????????????????????????????? | | ## ##?????????????????????????????????????????? | | ## #??###????????????????????????????????????? | | #?## ##???????????????????????????????????? | | #??# ##??????????????????????????????????? | | #??## ######?????????????????????????????? | | #### ## ##????????????????????????????? | | ## ## ##????##?????????????????????? | | ###### ##### #??????? ?????????????? | | #????## ## #????? |%????????????? | | ??????######### ## ##???? ????????????? | | ??????????????######## #???? #????????????? | | ?????????????????????# ##?? #?????????????? | | ?????????????????????# ## #??????????????? | | ?????????????????????# g #??????????????? | | ?????????????????????### ### #?????????????? | | ???????????????????????# R ##??????????????????? | | ??????????????????????# ####???????????????????? | | ??????????????????????# ??????????????????????? | | ??????????????????????# ??????????????????????? | | ?????????????????????? #?????????????????????? | | ????????????????????? ##?????????????????????? | | ???????????????????? ??????????????????????? | | ???????????????????# ??????????????????????? | | ???????????????????# ??????????????????????? | | ???????????????????### #??????????????????????? | | ?????????????????????#####???????????????????????? | | ?????????????????????????????????????????????????? | | ?????????????????????????????????????????????????? | | ?????????????????????????????????????????????????? | | ?????????????????????????????????????????????????? | | ?????????????????????????????????????????????????? | | ?????????????????????????????????????????????????? | | ?????????????????????????????????????????????????? | | ?????????????????????????????????????????????????? | | ?????????????????????????????????????????????????? | | ?????????????????????????????????????????????????? | | ?????????????????????????????????????????????????? | | ?????????????????????????????????????????????????? | | ?????????????????????????????????????????????????? | | ?????????????????????????????????????????????????? | +----------------------------------------------------+ Best States ------------- Heat Dissipation 40 Coolant Potential 50 Energy Generation 20 Energy Capacity 150 Matter Stores 100 Matter Capacity 100 Sight Range 16 Terrain Scan Density 10 Armor Coverage 800 Evasion (%) 55 Item Schematics ----------------- None Robot Schematics ------------------ None Fabricated ------------ Nothing Repaired ---------- Nothing Alien Tech Used ----------------- None Achievements -------------- None Challenges ------------ None Polymind | -11 -10 -10 -10 ---------- Run | Yrd Mat Min Sub Hosts 2 | . 1 . 1 Combat Hostiles 2 | . 1 . 1 Allies . | . . . . Unique Host Classes 2 | . 1 . 1 Average Host Suspicion 71 | . 100 81 42 Unsuspicious Activity 136 | . . . 136 Returns to Shadow . | . . . . Fuzzy Dispatches . | . . . . Protomatter Created 91 | . 10 9 72 Used 63 | . 30 . 33 Decayed 23 | . . . 23 Highest Spend 33 | . 30 . 33 Top 5 Hosts by Kills: G-47 Trooper (-10/Materials: 6) YC-M35(R) (-10/Subcaves: 3) Game ------ Seed WaveAssembledDriver Manual? 0 Play Time 00:04:53 Cumulative 1044.7 hours Start 2025.05.17 @ 16:25:13 End 2025.05.17 @ 16:33:12 Sessions 1 Manual Loads 0 Difficulty Rogue Special Mode Winter2022/Polymind Game No. 1296 Rogue 1013 Adventurer 124 Explorer 159 Win Type - Total 46 Types 32/0/8/4/1/0/0/1/0/0 Lore% 91 Gallery% 85 Achievement% 80 Wizard Run 0 Options --------- Layout 0 ASCII 0 Keyboard 1 Movement Numpad Keybinds 0 Fullscreen 2 Font 18/X11 Map View 76x50 Zoom Use 0% Tactical HUD 1 Map Filters NONE Filters NONE Steam 1 RUN: 1b574694-8a7b-4231-9c28-eae4224003ac